Cogmind - Beta 17.1 @@@ ROGUE MODE // 2026.09.10 @ 15:49:27 Player: CORNISH Result: Destroyed by G8-REP(R) with Subdweller Machine Gun Performance ------------- Evolutions (0) 0 Regions Visited (2) 400 Robots Destroyed (9) 45 Value Destroyed (276) 276 Prototype IDs (2) 40 Alien Tech Used (0) 0 Bonus (0) 0 TOTAL SCORE: 761 Bonus ------- None Cogmind --------- Core Integrity 0/250 Matter 285/300 Energy 200/200 System Corruption 0% Temperature Cool (4) Movement Core (550) Ox10 Location -10/Subcaves Parts ------- > --- POWER (1) -------- Subdweller Power Source > --- PROPULSION (2) --- (None) > --- UTILITY (2) ------ Large Storage Unit ECM Suite > --- WEAPON (2) ------- Subdweller Laser Battle Rifle > --- INVENTORY (15) --- Heat Sink High-capacity Matter Pod (34) Subdweller Optics Peak State ------------ > --- POWER ------------ Subdweller Power Source > --- PROPULSION ------- Aluminum Leg Aluminum Leg > --- UTILITY ---------- Large Storage Unit ECM Suite > --- WEAPON ----------- Subdweller Laser Battle Rifle > --- INVENTORY -------- Heat Sink High-capacity Matter Pod [Rating: 10] Favorites ----------- Power Light Ion Engine Engine Light Ion Engine Propulsion Aluminum Leg Treads Light Treads Leg Aluminum Leg Utility Large Storage Unit Device ECM Suite Storage Large Storage Unit Weapon Assault Rifle Energy Gun Medium Laser Ballistic Gun Assault Rifle Build | -11 -10 -10 ------- Run | Yrd Mat Sub Slots Evolved . | . . . Power . | . . . Propulsion . | . . . Utility . | . . . Weapon . | . . . Parts Attached 16 | 7 6 3 Power 3 | 1 1 1 Engine 3 | 1 1 1 Core . | . . . Reactor . | . . . Propulsion 4 | 2 2 . Treads 2 | 2 . . Leg 2 | . 2 . Wheel . | . . . Hover . | . . . Flight . | . . . Utility 5 | 2 3 . Device 2 | 1 1 . Storage 3 | 1 2 . Processor . | . . . Hackware . | . . . Protection . | . . . Artifact . | . . . Weapon 4 | 2 . 2 Energy Gun 2 | 1 . 1 Energy Cannon . | . . . Ballistic Gun 2 | 1 . 1 Ballistic Cannon . | . . . Launcher . | . . . Special Weapon . | . . . Impact Weapon . | . . . Slashing Weapon . | . . . Piercing Weapon . | . . . Special Melee Weapon . | . . . Unidentified Prototypes . | . . . Parts Lost 4 | . . 4 Power 1 | . . 1 Propulsion 2 | . . 2 Utility . | . . . Weapon 1 | . . 1 Highest Loss Streak 2 | . . 2 To Critical Strikes . | . . . Average Backups 3 | 2 4 2 Power . | . . . Propulsion 1 | 2 1 . Utility 1 | . 1 2 Weapon . | . . . Tool/Special . | . . . Unused Backups 4 | . 1 3 Power 1 | . 1 . Propulsion . | . . . Utility 3 | . . 3 Weapon . | . . . Tool/Special . | . . . Average Slot Usage (%) 96 | . 98 94 Engine 12 | . 14 11 Treads 11 | . 25 . Leg 14 | . 2 26 Device 13 | . 13 14 Storage 14 | . 14 14 Energy Gun 13 | . 13 13 Ballistic Gun 14 | . 14 14 Peak Build Rating 10 | 7 7 10 Average Rating 7 | 4 6 8 On Entrance 4 | . 7 7 Avg Prop Armor Cover (%) . | . . . Naked Turns . | . . . Heaviest Build 33 | 13 31 33 Greatest Support 40 | 40 40 20 Greatest Overweight (x) 10 | 2 1 10 Average Overweight (x) . | . . 1 Largest Inventory Capacity 15 | 8 15 15 Average Capacity 13 | 7 13 15 Most Carried 7 | 5 7 4 Average Carried 3 | 2 4 2 Final Capacity 15 | 8 15 15 Final Carried 3 | 3 2 3 Class Distribution -------------------- 100% | Mutant Dominant Class ---------------- Mutant | -10/Materials Mutant | -10/Subcaves Resources | -11 -10 -10 ----------- Run | Yrd Mat Sub Matter Collected 582 | 279 168 135 Remotely 179 | 128 51 . Salvage Created 364 | 61 168 135 Parts 17 | 2 8 7 Haulers Intercepted . | . . . Recyclers Shooed . | . . . Parts Field Recycled . | . . . Retrieved Matter . | . . . Parts Self-Destructed 3 | . . 3 Prevented . | . . . Parts Restored . | . . . Kills | -11 -10 -10 ------- Run | Yrd Mat Sub Combat Hostiles Destroyed 7 | . 4 3 Guns 7 | . 4 3 Classes Destroyed 4 | 1 2 1 Worker 1 | . 1 . Recycler 1 | 1 . . Grunt 4 | . 4 . Subdweller 3 | . . 3 Best Kill Streak 2 | 1 2 2 Combat Bots Only 2 | . 2 2 Max Kills in Single Turn 1 | 1 1 1 Gunslinging . | . . . Exploded . | . . . Melee . | . . . Uniques/NPCs Destroyed . | . . . Combat | -11 -10 -10 -------- Run | Yrd Mat Sub Hostile Shots Fired 69 | . 29 40 Missed 18 | . 5 13 Hits 51 | . 24 27 Projectile 51 | . 24 27 Damage Taken 967 | . 307 660 Core 273 | . 44 229 Absorbed by Shields . | . . . Core Remaining (%) 100 | 100 . . Volleys Fired 48 | 3 23 22 Largest 2 | 1 2 2 Hottest 85 | 20 70 85 Shots Fired 82 | 3 46 33 Gun 82 | 3 46 33 Cannon . | . . . Launcher . | . . . Special . | . . . Kinetic 48 | 3 23 22 Thermal 34 | . 23 11 Explosive . | . . . Electromagnetic . | . . . Robot Hit Streak 12 | 3 8 12 Robot Miss Streak 5 | . 5 2 Penetration Max . | . . . Secondary Targets 2 | . 1 1 Max Gunslinging Chain 1 | . 1 1 Shots Hit Robots 57 | 3 26 28 Core Hits 20 | 2 10 8 Critical Kills . | . . . Critical Parts Destroyed . | . . . Critical Strikes . | . . . Melee Attacks . | . . . Impact . | . . . Slashing . | . . . Piercing . | . . . Sneak Attacks . | . . . Combat Hostiles . | . . . Follow-up Attacks . | . . . Damage Inflicted 789 | 37 327 425 Guns 789 | 37 327 425 Cannons . | . . . Explosions . | . . . Melee . | . . . Ramming . | . . . Kinetic 468 | 37 191 240 Thermal 321 | . 136 185 Explosive . | . . . Electromagnetic . | . . . Impact . | . . . Slashing . | . . . Piercing . | . . . Highest Corruption . | . . . Average Corruption . | . . . Corruption Purged . | . . . Corruption Blocked . | . . . Overload Shots . | . . . Overflow Damage . | . . . Projectiles . | . . . Explosions . | . . . Melee . | . . . Knockbacks . | . . . Impact . | . . . Kinetic . | . . . Secondary . | . . . Self-Inflicted Damage . | . . . Shots . | . . . Rammed . | . . . Targets Rammed . | . . . Kicked . | . . . Crushed . | . . . Highest Temperature 171 | . 171 13 Average Temperature 55 | . 66 5 Received Heat Transfer 303 | . 171 132 Siege Activations . | . . . Martial Activations . | . . . Shielding Activations . | . . . Robots Disrupted . | . . . Combat Hostiles . | . . . Robots Corrupted . | . . . Combat Hostiles . | . . . Parts Fried . | . . . Impact Corruptions . | . . . Robots Melted . | . . . Combat Hostiles . | . . . Parts Melted . | . . . Heat Transferred 681 | . 407 274 Parts Sabotaged . | . . . Parts Stolen . | . . . Parts Stripped . | . . . Power Chain Reactions . | . . . Alert | -11 -10 -10 ------- Run | Yrd Mat Sub Maximum Alert Level . | . . . Low Security (%) 100 | 100 100 . Level 1 . | . . . Level 2 . | . . . Level 3 . | . . . Level 4 . | . . . Level 5 . | . . . High Security . | . . . Max Security . | . . . Peak Influence 40 | 5 40 . Initial . | . . . Average 6 | . 7 . Influence Increases 120 | 5 115 . Destroy 0b10 Robot/C 80 | . 80 . Destroy 0b10 Robot/NC 10 | 5 5 . Destroy Leader 20 | . 20 . Successful Hack 10 | . 10 . Influence Decreases 120 | 5 103 12 Entered New Map 7 | . . 7 Time Decay 113 | 5 103 5 Squads Dispatched 1 | . 1 . Investigation 1 | . 1 . Extermination . | . . . Reinforcement . | . . . Assault . | . . . Garrison . | . . . Intercept . | . . . Searches Triggered . | . . . Construction Impeded . | . . . Haulers Reinforced . | . . . Active Scanning Responses . | . . . Cargo Convoy Interrupts . | . . . Stealth | -11 -10 -10 --------- Run | Yrd Mat Sub Distress Signals 1 | . 1 . Communications Jammed . | . . . Distress Signals . | . . . Times Spotted 11 | . 7 4 Peak Tracking Total 2 | . 2 2 Tactical Retreats . | . . . Traps | -11 -10 -10 ------- Run | Yrd Mat Sub Traps Triggered 2 | . 2 . Indirectly . | . . . Trap Hack Attempts . | . . . Triggered . | . . . Disarmed . | . . . Reprogrammed . | . . . Reused . | . . . Traps Extracted . | . . . Installed . | . . . Triggered . | . . . Machines | -11 -10 -10 ---------- Run | Yrd Mat Sub Machines Disabled . | . . . Max in Single Turn . | . . . Machines Repaired . | . . . Machines Dismantled . | . . . Machines Sabotaged . | . . . Overloaded Fab Kills . | . . . Hacking | -11 -10 -10 --------- Run | Yrd Mat Sub Machines Accessed 2 | . 2 . Terminals 2 | . 2 . Fabricators . | . . . Repair Stations . | . . . Recycling Units . | . . . Scanalyzers . | . . . Garrison Access . | . . . Total Hacks 7 | . 7 . Successful 5 | . 5 . Failed 2 | . 2 . Catastrophic . | . . . Database Lockouts . | . . . Manual . | . . . Terminals 7 | . 7 . Fabricators . | . . . Repair Stations . | . . . Recycling Units . | . . . Scanalyzers . | . . . Garrison Access . | . . . Terminal Hacks 5 | . 5 . Prototype ID Bank 1 | . 1 . Emergency Access Points 1 | . 1 . Alert Level 1 | . 1 . Locate Traps 1 | . 1 . Hauler Manifests 1 | . 1 . Fabricator Hacks . | . . . Repair Station Hacks . | . . . Recycling Unit Hacks . | . . . Scanalyzer . | . . . Garrison Access Hacks . | . . . Unauthorized Hacks . | . . . Terminals . | . . . Fabricators . | . . . Repair Stations . | . . . Recycling Units . | . . . Scanalyzers . | . . . Garrison Access . | . . . Data Cores Recovered . | . . . Used . | . . . Hacking Detections 2 | . 2 . Full Trace Events 1 | . 1 . Feedback Events . | . . . Feedback Blocked . | . . . Robot Schematics Acquired . | . . . Robots Built . | . . . Authchips . | . . . Time . | . . . Total Robot Build Rating . | . . . Part Schematics Acquired . | . . . Parts Built . | . . . Authchips . | . . . Time . | . . . Total Part Build Rating . | . . . Part Studies Acquired . | . . . Parts Repaired . | . . . Time . | . . . Parts Recycled . | . . . Recycled Matter . | . . . Retrieved Matter . | . . . Retrieved Components . | . . . Parts Scanalyzed . | . . . Part Schematics Acquired . | . . . Parts Damaged . | . . . Bothacking | -11 -10 -10 ------------ Run | Yrd Mat Sub Used RIF Installer . | . . . Robots Hacked . | . . . Non-combat . | . . . Combat . | . . . Robot Hacks Applied . | . . . Relay Couplers Released . | . . . Fabnet Peak Effective % . | . . . Robots Rewired . | . . . Allies Hacked . | . . . Hacks Repelled . | . . . Allies | -11 -10 -10 -------- Run | Yrd Mat Sub Total Allies . | . . . Largest Group . | . . . Highest-Rated Group . | . . . Highest-Rated Ally . | . . . Total Orders . | . . . Ally Attacks . | . . . Total Damage . | . . . Kills . | . . . Allies Corrupted . | . . . Allies Melted . | . . . Intel | -11 -10 -10 ------- Run | Yrd Mat Sub Active Infowar (turns) 649 | . 201 448 ECM 649 | . 201 448 Robot Analysis Total . | . . . Derelict Logs Recovered . | . . . Drone Launches . | . . . Drone Recoveries . | . . . Exploration | -11 -10 -10 ------------- Run | Yrd Mat Sub Turns Passed 960 | 90 408 462 Spaces Moved 421 | 54 195 172 Core 28 | 27 . 1 Treads 205 | 27 178 . Legs 188 | . 17 171 Wheels . | . . . Hover . | . . . Flight . | . . . Fastest Speed 50 | 50 160 190 Average Speed 169 | 125 162 192 Slowest Speed 550 | 160 190 550 Overloaded Moves . | . . . Propulsion Burnouts . | . . . Robots Hopped . | . . . Potential Cave-ins . | . . . Cave-ins Triggered . | . . . Exploration Rate (%) 18 | 3 35 16 Regions Visited 2 Branch Regions 1 Pre-discovered Areas . | . . . Known Exits Taken . | . . . Unknown Exits Taken 2 | 1 1 . Scrap Searched . | . . . Spaces Dug . | . . . Terrain Destroyed . | . . . Melee . | . . . Projectile . | . . . AOE . | . . . Terrain Rammed . | . . . Walls Destroyed . | . . . Machines Disabled . | . . . Actions | -11 -10 -10 --------- Run | Yrd Mat Sub Total 586 | 73 241 272 Wait 70 | . . 70 Move 419 | 53 194 172 Hop . | . . . Pick Up 22 | 10 8 4 Fast Attach . | . . . Attach 13 | 7 3 3 Detach . | . . . Swap 6 | . 6 . Drop 8 | . 7 1 Fire 48 | 3 23 22 Melee . | . . . Ram . | . . . Kick . | . . . Crush . | . . . Escape Stasis . | . . . Rewire . | . . . Trap . | . . . Miscellaneous . | . . . Route ------- -11/Scrapyard -10/Materials (discovered 2 exits: [*Mat] / [*Sub]) -10/Subcaves History --------- Turn | Location | Event 4 | -11/Scrapyard | Discovered new exit (range 15) 91 | -11/Scrapyard | Entered Materials 311 | -10/Materials | Build established: Mutant 332 | -10/Materials | Discovered new exit (range 14) 478 | -10/Materials | Discovered new exit (range 8) 499 | -10/Materials | Entered Subcaves 935 | -10/Subcaves | Core integrity fell below 50% 952 | -10/Subcaves | Core integrity fell below 20% 961 | -10/Subcaves | Destroyed by G8-REP(R) with Subdweller Machine Gun Last Messages --------------- J9-GTF(R) affixes Scrap Shield Fragment to Scrap Shield. J9-GTF(R) destroyed. Subatomizers dissect the Sub. Monowheel. Acquired Battle Rifle. Acquired Sub. Laser. Dropped Assault Rifle. Subatomizers dissect the Sub. Monowheel. Acquired 35 matter. Acquired 41 matter. Subatomizers dissect the Sub. Monowheel. Acquired Sub. Power Source. Subatomizers dissect the Sub. Monowheel. Acquired Sub. Optics. Subatomizers dissect the Sub. Monowheel. Aluminum Leg destroyed. 8U-9X1(R) destroyed. Switching to secondary target: G8-REP(R). Acquired 59 matter. Subatomizers dissect the Sub. Beam Cannon. Map ----- +----------------------------------------------------+ | ???????????????### ##??????????????????# ### | | ?????????????????# ###????????????????# ### | | ?????????????????# #????????????????## ## | | ?????????????????# ##????????????????# # # | | ?????????????????# #?????????????????#### | | ?????????????????# ##???????????????????## | | ?????????????????## #????????????????????# | | ?????????????????# #????????????????????? | | ?????????????????# #??????????????###???? | | ?????????????????## ###?????????????# #??? | | ??????????????????# #?????????????# ##? | | ??????????????????# #?????????????# #? | | ??????????????????# #?????????????# ## | | ??????????????????## ##?????????????# # | | ???????????????????#" ##??????????????# | | ??????????????????## " #??????????????## | | ?????????????????## " #???????????????## | | ????????????????## ##????????????????# | | ????????????????#"""" #?????????????????### | | ????????????????# ##???????????????????## | | ????????????????## R##?????????????????????? | | ???????????????## #?????????????????????? | | ???????????????#;# #?????????????????????? | | ????????????????# #?????????????????????? | | ????????????????# *##?????????????????????? | | ????????????????##]@#??????????????????????? | | ?????????????????# ! ?????????????????????? | | ????????????????# ???????????????????? | | ????????????????## # # ?????????????????? | | ?????????????????##?###?## ???????????????? | | ??????????????????????????? #?????????????? | | ?????????????????????????????#?????????????? | | ???????????????????????????????????????????? | | ???????????????????????????????????????????? | | ???????????????????????????????????????????? | | ???????????????????????????????????????????? | | ???????????????????????????????????????????? | | ???????????????????????????????????????????? | | ???????????????????????????????????????????? | | ???????????????????????????????????????????? | | ???????????????????????????????????????????? | | ???????????????????????????????????????????? | | ???????????????????????????????????????????? | | ???????????????????????????????????????????? | | ???????????????????????????????????????????? | | ???????????????????????????????????????????? | | ???????????????????????????????????????????? | | ???????????????????????????????????????????? | | ???????????????????????????????????????????? | | ???????????????????????????????????????????? | +----------------------------------------------------+ Best States ------------- Heat Dissipation 25 Energy Generation 15 Energy Capacity 250 Matter Stores 300 Matter Capacity 300 Sight Range 16 Terrain Scan Density 10 ECM Strength 1 Evasion (%) 50 Recoil Reduction 2 Item Schematics ----------------- None Robot Schematics ------------------ None Fabricated ------------ Nothing Repaired ---------- Nothing Studied --------- None Alien Tech Used ----------------- None Achievements -------------- Use The Force Challenges ------------ None Game ------ Seed ActiveHugeDecompositor Manual? 0 Play Time 00:18:47 Cumulative 3.7 hours Start 2026.09.10 @ 15:32:08 End 2026.09.10 @ 15:49:27 Sessions 1 Manual Loads 0 Difficulty Rogue Special Mode None Game No. 7 Rogue 7 Adventurer 0 Explorer 0 Win Type - Total 0 Types 0/0/0/0/0/0/0/0/0/0 Lore% 1 Gallery% 7 Achievement% 5 Wizard Run 0 Options --------- Layout 1 ASCII 0 Keyboard 0 Movement Mouse Keybinds 0 Fullscreen 1 Font 32/SmallcapsGlow Map View 50x40 Zoom Use 0% Tactical HUD 0 Map Filters NONE Filters NONE Steam 1 RUN: 4dde84c7-f80d-4e90-ae49-2e8d821ba4e4